lending/lending_fUSD_20251121
["ID","MTS","AMOUNT","RATE_DAILY","PERIOD"]
[394582812,1763735442447,-866.0,0.00017875,2]
[394582813,1763735442456,-300.0,0.00017877,2]
[394582814,1763735442467,-300.0,0.0001788,2]
[394582815,1763735442476,-300.0,0.00017882,2]
[394582816,1763735442487,-300.0,0.00017883,2]
[394582817,1763735442497,-300.0,0.00017885,2]
[394582818,1763735442507,-300.0,0.00017886,2]
[394582819,1763735442518,-1000.0,0.00017887,2]
[394582820,1763735442530,-300.0,0.00017892,2]
[394582821,1763735442543,-300.0,0.00017895,2]
[394582822,1763735442553,-1000.0,0.00017895,2]
[394582823,1763735442565,-300.0,0.00017896,2]
[394582824,1763735442574,-300.0,0.00017897,2]
[394582825,1763735442583,-1817.60372363,0.000179,2]
[394582826,1763735442593,-1200.0,0.000179,6]
[394582827,1763735442605,-223.6937853,0.000179,3]
[394582828,1763735442616,-3324.58234917,0.000179,2]
[394582829,1763735442633,-2274.06283072,0.000179,2]
[394582830,1763735442642,-2339.40090819,0.000179,2]
[394582831,1763735442652,-537.6819669,0.000179,2]
[394582832,1763735442662,-159.80558995,0.000179,2]
[394582833,1763735442672,-500.0,0.000179,2]
[394582834,1763735442682,-500.0,0.000179,2]
[394582835,1763735442691,-500.0,0.000179,2]
[394582836,1763735442701,-500.0,0.000179,2]
[394582837,1763735442710,-500.0,0.000179,2]
[394582838,1763735442720,-500.0,0.000179,2]
[394582839,1763735442730,-500.0,0.000179,2]
[394582840,1763735442739,-500.0,0.000179,2]
[394582841,1763735442749,-500.0,0.000179,2]
[394582842,1763735442758,-500.0,0.000179,2]
[394582843,1763735442768,-500.0,0.000179,2]
[394582844,1763735442777,-500.0,0.000179,2]
[394582845,1763735442787,-500.0,0.000179,2]
[394582846,1763735442796,-500.0,0.000179,2]
[394582847,1763735442806,-500.0,0.000179,2]
[394582848,1763735442816,-500.0,0.000179,2]
[394582849,1763735442826,-180.52953997,0.000179,2]
[394582850,1763735442836,-6815.0,0.000179,2]
[394582851,1763735442847,-300.0,0.00017902,2]
[394582852,1763735442857,-228.94768431,0.00017903,2]
[394582853,1763735442868,-300.0,0.00017907,2]
[394582854,1763735442883,-300.0,0.00017912,2]
[394582855,1763735442893,-300.0,0.00017914,2]
[394582856,1763735442903,-300.0,0.00017914,2]
[394582857,1763735442913,-300.0,0.00017916,2]
[394582858,1763735442923,-300.0,0.0001792,2]
[394582859,1763735442932,-300.0,0.00017924,2]
[394582860,1763735442943,-300.0,0.00017925,2]
[394582861,1763735442953,-300.0,0.00017927,2]
[394582862,1763735442962,-300.0,0.00017927,2]
[394582863,1763735442971,-906.35702,0.0001793,2]
[394582864,1763735442980,-300.0,0.0001793,2]
[394582865,1763735442990,-300.0,0.00017935,2]
[394582866,1763735443000,-300.0,0.00017935,2]
[394582867,1763735443010,-300.0,0.00017936,2]
[394582868,1763735443020,-300.0,0.00017938,2]
[394582869,1763735443030,-300.0,0.00017938,2]
[394582870,1763735443039,-200.0,0.00017945,2]
[394582872,1763735443049,-233.03885101,0.00017945,2]
[394582874,1763735443059,-166.00439136,0.00017945,2]
[394582875,1763735443068,-500.0,0.00017945,2]
[394582876,1763735443077,-200.0,0.00017945,2]
[394582877,1763735443087,-500.0,0.00017945,2]
[394582878,1763735443096,-500.0,0.00017945,2]
[394582879,1763735443105,-500.0,0.00017945,2]
[394582880,1763735443114,-500.0,0.00017945,2]
[394582881,1763735443130,-1030.3720115,0.00017968,2]
[394582882,1763735443140,-1500.0,0.00017968,2]
[394582883,1763735443150,-1001.97914193,0.00017968,2]
[394582884,1763735443160,-298.42345277,0.00017968,2]
[394582885,1763735443171,-1500.0,0.00017968,2]
[394582886,1763735443180,-1002.27378184,0.00017968,2]
[394582887,1763735443190,-501.54530513,0.00017968,2]
[394582888,1763735443200,-500.0,0.00017973,2]
[394582889,1763735443210,-500.0,0.00017973,2]
[394582890,1763735443220,-500.0,0.00017973,2]
[394582891,1763735443229,-500.0,0.00017973,2]
[394582892,1763735443240,-500.0,0.00017973,2]
[394582893,1763735443249,-500.0,0.00017973,2]
[394582894,1763735443259,-500.0,0.00017973,2]
[394582895,1763735443270,-500.0,0.00017973,2]
[394582896,1763735443279,-500.0,0.00017973,2]
[394582897,1763735443289,-365.08659521,0.00017973,2]
[394582898,1763735443298,-500.0,0.00017973,2]
[394582899,1763735443308,-501.42210277,0.00017973,2]
[394582900,1763735443318,-500.0,0.00017973,2]
[394582901,1763735443327,-500.0,0.00017973,2]
[394582902,1763735443337,-366.0135026,0.00017973,2]
[394582903,1763735443347,-500.0,0.00017973,2]
[394582904,1763735443357,-503.52814199,0.00017973,2]
[394582905,1763735443366,-501.10903681,0.00017973,2]
[394582906,1763735443382,-150.0,0.00017973,2]
[394582907,1763735443391,-583.77562454,0.00017974,2]
[394582908,1763735443400,-1219.71735426,0.0001799,2]
[394582909,1763735443410,-300.0,0.00017992,2]
[394582910,1763735443419,-261.0,0.00017994,2]
[394582911,1763735443428,-151.0,0.00017997,2]
[394582912,1763735443437,-300.0,0.00017998,2]
[394582913,1763735443446,-1004.94,0.00017998,2]
[394582914,1763735443455,-150.0,0.00017999,2]
[394582915,1763735443465,-500.0,0.00017999,2]
[394582916,1763735443474,-500.0,0.00017999,2]
[394582917,1763735443484,-500.0,0.00017999,2]
[394582918,1763735443494,-526.09062591,0.00017999,2]
[394582919,1763735443504,-781.86,0.00017999,2]
[394582920,1763735443514,-781.86,0.00017999,2]
[394582921,1763735443528,-781.86,0.00017999,2]
[394582922,1763735443538,-781.86,0.00017999,2]
[394582923,1763735443548,-781.86,0.00017999,2]
[394582924,1763735443557,-781.86,0.00017999,2]
[394582925,1763735443567,-781.86,0.00017999,2]
[394582926,1763735443577,-781.86,0.00017999,2]
[394582927,1763735443588,-781.86,0.00017999,2]
[394582928,1763735443597,-781.86,0.00017999,2]
[394582929,1763735443609,-781.86,0.00017999,2]
[394582930,1763735443619,-500.0,0.00017999,2]
[394582931,1763735443637,-781.86,0.00017999,2]
[394582932,1763735443648,-500.0,0.00017999,2]
[394582933,1763735443659,-781.86,0.00017999,2]
[394582934,1763735443669,-500.0,0.00017999,2]
[394582935,1763735443679,-781.86,0.00017999,2]
[394582936,1763735443689,-500.0,0.00017999,2]
[394582937,1763735443699,-781.86,0.00017999,2]
[394582938,1763735443709,-500.0,0.00017999,2]
[394582939,1763735443719,-781.86,0.00017999,2]
[394582940,1763735443728,-500.0,0.00017999,2]
[394582941,1763735443738,-781.86,0.00017999,2]
[394582942,1763735443747,-500.0,0.00017999,2]
[394582943,1763735443756,-781.86,0.00017999,2]
[394582944,1763735443766,-500.0,0.00017999,2]
[394582945,1763735443775,-781.86,0.00017999,2]
[394582946,1763735443784,-344.93436629,0.00017999,2]
[394582947,1763735443794,-781.86,0.00017999,2]
[394582948,1763735443803,-781.98739693,0.00017999,2]
[394582949,1763735443813,-300.0,0.00017999,2]
[394582950,1763735443823,-300.0,0.00017999,2]
[394582951,1763735443832,-666.0,0.00017999,2]
[394582952,1763735443841,-500.0,0.00017999,2]
[394582953,1763735443850,-500.0,0.00017999,2]
[394582954,1763735443859,-500.0,0.00017999,2]
[394582955,1763735443869,-500.0,0.00017999,2]
[394582956,1763735443886,-500.0,0.00017999,2]
[394582958,1763735444071,-500.0,0.00017999,2]
[394582959,1763735444081,-500.0,0.00017999,2]
[394582960,1763735444091,-500.0,0.00017999,2]
[394582961,1763735444100,-500.0,0.00017999,2]
[394582962,1763735444110,-500.0,0.00017999,2]
[394582963,1763735444120,-500.0,0.00017999,2]
[394582964,1763735444135,-500.0,0.00017999,2]
[394582965,1763735444144,-500.0,0.00017999,2]
[394582966,1763735444154,-500.0,0.00017999,2]
[394582967,1763735444164,-500.0,0.00017999,2]
[394582968,1763735444177,-500.0,0.00017999,2]
[394582969,1763735444187,-157.27985602,0.00017999,2]
[394582970,1763735444196,-1081.74362509,0.00017999,5]
[394582971,1763735444207,-1081.74362509,0.00017999,5]
[394582972,1763735444216,-1081.74362509,0.00017999,5]
[394582973,1763735444226,-1081.74362509,0.00017999,5]
[394582974,1763735444236,-1081.74362509,0.00017999,5]
[394582975,1763735444246,-1081.74362514,0.00017999,5]
[394582976,1763735444255,-1081.74362509,0.00017999,5]
[394582977,1763735444264,-1081.74362509,0.00017999,5]
[394582978,1763735444274,-300.0,0.00017999,2]
[394582979,1763735444283,-300.0,0.00017999,2]
[394582980,1763735444293,-300.0,0.00017999,2]
[394582981,1763735444304,-300.0,0.00017999,2]
[394582982,1763735444314,-666.0,0.00017999,2]
[394582983,1763735444323,-300.0,0.00017999,2]
[394582984,1763735444333,-666.0,0.00017999,2]
[394582985,1763735444343,-511.36,0.00017999,2]
[394582986,1763735444353,-511.36,0.00017999,2]
[394582987,1763735444362,-511.36,0.00017999,2]
[394582988,1763735444378,-511.36,0.00017999,2]
[394582989,1763735444387,-511.36,0.00017999,2]
[394582990,1763735444397,-511.36,0.00017999,2]
[394582991,1763735444406,-511.36,0.00017999,2]
[394582992,1763735444415,-511.36,0.00017999,2]
[394582993,1763735444425,-511.36,0.00017999,2]
[394582994,1763735444434,-511.36,0.00017999,2]
[394582995,1763735444443,-511.36,0.00017999,2]
[394582996,1763735444452,-511.36,0.00017999,2]
[394582997,1763735444462,-511.36,0.00017999,2]
[394582998,1763735444472,-511.36,0.00017999,2]
[394582999,1763735444481,-511.36,0.00017999,2]
[394583000,1763735444490,-511.36,0.00017999,2]
[394583001,1763735444500,-511.36,0.00017999,2]
[394583002,1763735444510,-511.37716056,0.00017999,2]
[394583003,1763735444519,-764.36,0.00017999,2]
[394583004,1763735444530,-1000.0,0.00017999,2]
[394583005,1763735444542,-1004.94,0.00017999,2]
[394583006,1763735444551,-1004.94,0.00017999,2]
[394583007,1763735444561,-1004.94,0.00017999,2]
[394583008,1763735444571,-1004.94,0.00017999,2]
[394583009,1763735444580,-1004.94,0.00017999,2]
[394583010,1763735444589,-1004.94,0.00017999,2]
[394583011,1763735444599,-1004.94,0.00017999,2]
[394583012,1763735444610,-1004.94,0.00017999,2]
[394583013,1763735444624,-150.0,0.00018,2]
[394583014,1763735444636,-150.0,0.00018,2]
[394583015,1763735444647,-150.0,0.00018,2]
[394583016,1763735444657,-150.0,0.00018,2]
[394583017,1763735444668,-150.0,0.00018,2]
[394583018,1763735444679,-4774083.26714521,0.00018,2]
[394583019,1763735444689,-167.18070033,0.00018,2]
[394583020,1763735444698,-150.0,0.00018,2]
[394583021,1763735444708,-4212.24232343,0.00018,2]
[394583022,1763735444718,-150.0,0.00018,2]
[394583023,1763735444727,-4716.20018449,0.00018,2]
[394583024,1763735444736,-150.0,0.00018,2]
[394583025,1763735444746,-13922.71146242,0.00018,2]
[394583026,1763735444756,-150.0,0.00018,2]
[394583027,1763735444765,-4234.57220288,0.00018,2]
[394583028,1763735444775,-181.95156335,0.00018,2]
[394583029,1763735444784,-206.04265051,0.00018,2]
[394583030,1763735444795,-529.41,0.00018,2]
[394583031,1763735444805,-1927838.11133272,0.00018,2]
[394583032,1763735444823,-435.40214153,0.00018,2]
[394583041,1763735446141,-151.0,0.00016584,2]
[394583043,1763735446151,-1220.3699991,0.00017588,2]
[394583083,1763735460998,1699.95977759,0.00015346,2]
[394583084,1763735461031,10000.01,0.00015346,2]
[394583085,1763735461064,10000.01,0.00015346,2]
[394583086,1763735461096,10000.01,0.00015346,2]
[394583087,1763735461135,10000.01,0.00015346,2]
[394583088,1763735461167,10000.01,0.00015346,2]
[394583089,1763735461198,10000.01,0.00015346,2]
[394583090,1763735461230,10000.01,0.00015346,2]
[394583091,1763735461261,10000.01,0.00015346,2]
[394583092,1763735461293,10000.01,0.00015346,2]
[394583093,1763735465205,950.4,0.000215,120]
[394583094,1763735470616,-4993.9540332,0.00015346,2]
[394583095,1763735471801,-10000.01,0.00015346,2]
[394583096,1763735472068,-10000.01,0.00015346,2]
[394583097,1763735472216,-10000.01,0.00015346,2]
[394583098,1763735472332,-10000.01,0.00015346,2]
[394583099,1763735472479,-10000.01,0.00015346,2]
[394583100,1763735473027,-10000.01,0.00015346,2]
[394583101,1763735473186,-10000.01,0.00015346,2]
[394583102,1763735473218,-10000.01,0.00015346,2]
[394583103,1763735473248,-10000.01,0.00015346,2]
[394583104,1763735484251,-10000.01,0.00015346,2]
[394583105,1763735484466,-10000.01,0.00015346,2]
[394583106,1763735484883,-10000.01,0.00015346,2]
[394583107,1763735484936,-10000.01,0.00015346,2]
[394583108,1763735485088,-10000.01,0.00015346,2]
[394583109,1763735496258,223.70533056,0.00015039,2]
[394583110,1763735496281,3411.32166944,0.00015039,2]
[394583111,1763735496385,280.555,0.00015039,2]
[394583112,1763735497765,-10000.01,0.00015346,2]
[394583113,1763735498887,-10000.01,0.00015346,2]
[394583114,1763735498909,-10000.01,0.00015346,2]
[394583116,1763735614492,1840.01766112,0.00015169,2]
[394583117,1763735614516,5531.89433056,0.00015169,2]
[394583118,1763735614541,5531.89433056,0.00015169,2]
[394583119,1763735614564,5531.89433056,0.00015169,2]
[394583120,1763735614592,5531.89433056,0.00015169,2]
[394583121,1763735614617,1244.70866164,0.00015169,2]
[394583122,1763735691379,186.03654235,0.00015146,2]
[394583123,1763735703181,166.20354941,0.00022,30]
[394583124,1763735710256,-186.03654233,0.00015196,2]
[394583125,1763735710288,-300.0,0.00015245,2]
[394583126,1763735710327,-1200.0,0.00015245,2]
[394583127,1763735710358,-300.0,0.00015245,2]
[394583128,1763735710390,-300.0,0.00015245,2]
[394583129,1763735710424,-1139.25951703,0.00015246,2]
[394583130,1763735710581,-3149.41788128,0.00015246,2]
[394583131,1763735718007,-188.95528847,0.00015246,2]
[394583132,1763735718039,-186.03654233,0.00015246,2]
[394583133,1763735718071,-157.64512127,0.00015246,2]
[394583134,1763735718102,-952.2007,0.00015246,2]
[394583135,1763735718136,-1200.0,0.00015267,2]
[394583136,1763735718168,-300.0,0.00015267,2]
[394583137,1763735718199,-300.0,0.00015345,2]
[394583138,1763735718232,-1598.47469586,0.00015345,2]
[394583139,1763735718482,-233.38530414,0.00015345,2]
[394583140,1763735773860,160.0,0.000151,2]
[394583141,1763735774622,160.0,0.000151,2]
[394583142,1763735774983,160.0,0.000151,2]
[394583143,1763735781757,160.0,0.000151,2]
[394583144,1763735810358,-300.0,0.00015344,2]
[394583145,1763735810391,-250.0,0.00015345,2]
[394583146,1763735810424,-500.0,0.00015345,2]
[394583147,1763735810458,-226.24881327,0.00015345,2]
[394583148,1763735810496,-334.05892591,0.00015345,2]
[394583149,1763735810530,-474.7896206,0.00015345,2]
[394583150,1763735810562,-178.03328477,0.00015345,2]
[394583151,1763735810593,-304.21208666,0.00015345,2]
[394583152,1763735810633,-500.0,0.00015345,2]
[394583153,1763735810676,-500.0,0.00015345,2]
[394583154,1763735810720,-500.0,0.00015345,2]
[394583155,1763735810760,-500.0,0.00015345,2]
[394583156,1763735810800,-365.32453758,0.00015345,2]
[394583157,1763735811271,-134.67546242,0.00015246,2]
[394583158,1763735813594,-3063.81259027,0.00015246,2]
[394583159,1763735813635,-134.67546242,0.00015345,2]
[394583160,1763735813680,-500.0,0.00015345,2]
[394583161,1763735813725,-500.0,0.00015345,2]
[394583162,1763735813766,-500.0,0.00015345,2]
[394583163,1763735813806,-103.03389462,0.00015345,2]
[394583164,1763735813950,-396.96610538,0.00015345,2]
[394583165,1763735818118,-500.0,0.00015345,2]
[394583166,1763735818155,-500.0,0.00015345,2]
[394583167,1763735818193,-500.0,0.00015345,2]
[394583168,1763735818236,-500.0,0.00015345,2]
[394583169,1763735818280,-500.0,0.00015345,2]
[394583170,1763735818323,-500.0,0.00015345,2]
[394583171,1763735818362,-500.0,0.00015345,2]
[394583172,1763735818404,-500.0,0.00015345,2]
[394583173,1763735818444,-500.0,0.00015345,2]
[394583174,1763735818491,-500.0,0.00015345,2]
[394583175,1763735818887,-0.01,0.00015345,2]
[394583176,1763735864203,500.95,0.00015,2]
[394583177,1763735877409,2188.51,0.00019178,30]
[394583178,1763735878181,160.0,0.000151,2]
[394583179,1763735879587,160.0,0.000151,2]
[394583180,1763735888224,2640.19912657,7.945e-05,2]
[394583181,1763735888249,171.96948343,7.945e-05,2]
[394583182,1763735909111,-181.40130632,0.00015246,2]
[394583183,1763735909143,-2500.0,0.00015246,2]
[394583184,1763735909176,-300.0,0.00015296,2]
[394583185,1763735909208,-285.5329439,0.00015296,2]
[394583186,1763735909240,-193.0,0.00015296,2]
[394583187,1763735909271,-172.4986946,0.00015326,2]
[394583188,1763735909307,-300.0,0.00015326,2]
[394583189,1763735909338,-300.0,0.00015326,2]
[394583190,1763735909370,-335.14411036,0.00015345,2]
[394583191,1763735909559,-864.85588964,0.00015345,2]
[394583192,1763735912121,-300.0,0.00015345,2]
[394583193,1763735912155,-333.71655763,0.00015345,2]
[394583194,1763735912190,-155.70931718,0.00015346,2]
[394583195,1763735913343,151.0,0.00015346,2]
[394583196,1763735914277,160.41863435,0.00015346,2]
[394583197,1763735971904,-160.0,0.000152,2]
[394583198,1763735971935,-160.0,0.000152,2]
[394583199,1763735971967,-3892.02667173,0.00015246,2]
[394583200,1763735972172,-1264.53802219,0.00015246,2]
[394583201,1763735978881,-311.41863435,0.00015246,2]
[394583202,1763735978921,-300.0,0.00015345,2]
[394583203,1763735978962,-300.0,0.00015345,2]
[394583204,1763735979022,-500.0,0.00015345,2]
[394583205,1763735979071,-500.0,0.00015345,2]
[394583206,1763735979452,-500.0,0.00015345,2]
[394583207,1763735979496,-500.0,0.00015345,2]
[394583208,1763735979538,-500.0,0.00015345,2]
[394583209,1763735979581,-500.0,0.00015345,2]
[394583210,1763735979623,-500.0,0.00015345,2]
[394583211,1763735979662,-500.0,0.00015345,2]
[394583212,1763735980140,-177.1727313,0.00015345,2]
[394583213,1763736067105,-160.0,0.000152,2]
[394583214,1763736067140,-159.14729815,0.00015246,2]
[394583215,1763736067177,-2500.0,0.00015246,2]
[394583216,1763736067208,-1276.9467,0.00015246,2]
[394583217,1763736067239,-300.0,0.00015344,2]
[394583218,1763736067272,-7.8220037,0.00015344,2]
[394583219,1763736067397,-1192.1779963,0.00015344,2]
[394583220,1763736099298,160.0,0.000152,2]
[394583221,1763736099995,160.0,0.000152,2]
[394583222,1763736105513,200.0,0.00015124,2]
[394583223,1763736112786,160.0,0.000153,2]
[394583224,1763736113543,160.0,0.000153,2]
[394583226,1763736122430,300.0,0.00015345,2]
[394583227,1763736122579,160.0,0.000153,2]
[394583234,1763736126187,369.23151947,0.00015345,2]
[394583252,1763736134000,160.0,0.000153,2]
[394583257,1763736135727,160.0,0.000153,2]
[394583269,1763736141587,500.0,0.00015345,2]
[394583270,1763736141638,500.0,0.00015345,2]
[394583271,1763736141691,500.0,0.00015345,2]
[394583273,1763736141744,500.0,0.00015345,2]
[394583274,1763736141795,500.0,0.00015345,2]
[394583275,1763736141845,500.0,0.00015345,2]
[394583276,1763736141886,500.0,0.00015345,2]
[394583277,1763736141964,500.0,0.00015345,2]
[394583278,1763736142013,500.0,0.00015345,2]
[394583279,1763736142062,500.0,0.00015345,2]
[394583280,1763736142115,500.0,0.00015345,2]
[394583282,1763736142187,500.0,0.00015345,2]
[394583283,1763736142248,500.0,0.00015345,2]
[394583284,1763736142299,500.0,0.00015345,2]
[394583285,1763736142363,500.0,0.00015345,2]
[394583286,1763736142418,500.0,0.00015345,2]
[394583287,1763736142461,10.77848053,0.00015345,2]
[394583299,1763736158240,-489.22151947,0.00015345,2]
[394583300,1763736158283,-500.0,0.00015345,2]
[394583301,1763736158325,-500.0,0.00015345,2]
[394583302,1763736158365,-500.0,0.00015345,2]
[394583303,1763736158406,-500.0,0.00015345,2]
[394583304,1763736158449,-278.17811709,0.00015345,2]
[394583305,1763736158488,-500.0,0.00015345,2]
[394583306,1763736158527,-500.0,0.00015345,2]
[394583307,1763736158568,-500.0,0.00015345,2]
[394583308,1763736158605,-239.31206063,0.00015345,2]
[394583309,1763736158644,-486.58660562,0.00015345,2]
[394583310,1763736164641,-13.41339438,0.00015345,2]
[394583311,1763736164680,-500.0,0.00015345,2]
[394583312,1763736164717,-500.0,0.00015345,2]
[394583313,1763736164759,-500.0,0.00015345,2]
[394583314,1763736165033,-500.0,0.00015345,2]
[394583315,1763736165071,-500.0,0.00015345,2]
[394583316,1763736165108,-500.0,0.00015345,2]
[394583317,1763736165148,-500.0,0.00015345,2]
[394583318,1763736165186,-500.0,0.00015345,2]
[394583319,1763736165223,-500.0,0.00015345,2]
[394583320,1763736165263,-473.18321124,0.00015345,2]
[394583321,1763736170940,-40.23018314,0.00015246,2]
[394583322,1763736181878,-178.47188039,0.00015246,2]
[394583323,1763736181923,-9643.06623922,0.00015246,2]
[394583328,1763736204524,-300.0,0.00015245,2]
[394583329,1763736204570,-9400.01,0.00015246,2]
[394583330,1763736209136,-10000.01,0.00015246,2]
[394583332,1763736286019,1751.241723,0.0001517,2]
[394583333,1763736298906,217.42167607,0.00015146,2]
[394583335,1763736422400,-1200.0,0.00015245,2]
[394583336,1763736422438,-300.0,0.00015245,2]
[394583337,1763736422470,-217.42167607,0.00015246,2]
[394583338,1763736422503,-158.45895721,0.00015246,2]
[394583339,1763736422614,-6248.24873344,0.00015246,2]
[394583340,1763736468914,-300.0,0.00015245,2]
[394583341,1763736468948,-1200.0,0.00015245,2]
[394583342,1763736468984,-250.0,0.00015246,2]
[394583343,1763736469016,-111.46910041,0.00015246,2]
[394583344,1763736469050,-333.09546868,0.00015246,2]
[394583345,1763736469246,-5610.88086182,0.00015246,2]
[394583346,1763736475905,-175.90863265,0.00015246,2]
[394583347,1763736475938,-3530.56305706,0.00015246,2]
[394583348,1763736476000,-2587.06662058,0.00015246,2]
[394583349,1763736549357,-300.0,0.00015245,2]
[394583350,1763736549391,-258.46206363,0.00015245,2]
[394583351,1763736549428,-500.0,0.00015245,2]
[394583352,1763736549462,-167.51844244,0.00015245,2]
[394583353,1763736549494,-415.95432477,0.00015245,2]
[394583354,1763736549527,-268.4104606,0.00015245,2]
[394583355,1763736549563,-557.48703647,0.00015245,2]
[394583356,1763736549600,-500.0,0.00015245,2]
[394583357,1763736549637,-598.77021601,0.00015245,2]
[394583358,1763736549673,-500.0,0.00015245,2]
[394583359,1763736549710,-500.0,0.00015245,2]
[394583360,1763736549749,-366.80491216,0.00015245,2]
[394583361,1763736549990,-133.19508784,0.00015245,2]
[394583362,1763736550029,-500.0,0.00015245,2]
[394583363,1763736550069,-500.0,0.00015245,2]
[394583364,1763736550106,-500.0,0.00015245,2]
[394583365,1763736550148,-500.0,0.00015245,2]
[394583366,1763736550186,-576.95659061,0.00015245,2]
[394583367,1763736550223,-500.0,0.00015245,2]
[394583368,1763736550263,-500.0,0.00015245,2]
[394583369,1763736550299,-500.0,0.00015245,2]
[394583370,1763736550337,-500.0,0.00015245,2]
[394583371,1763736550379,-79.7066431,0.00015245,2]
[394583372,1763736550553,-420.2933569,0.00015245,2]
[394583373,1763736550588,-500.0,0.00015245,2]
[394583374,1763736550625,-500.0,0.00015245,2]
[394583375,1763736550661,-500.0,0.00015245,2]
[394583376,1763736550690,-191.16802733,0.00015245,2]
[394583377,1763736550725,-500.0,0.00015245,2]
[394583378,1763736550761,-500.0,0.00015245,2]
[394583379,1763736550801,-192.60931546,0.00015245,2]
[394583380,1763736550838,-500.0,0.00015245,2]
[394583381,1763736550875,-500.0,0.00015245,2]
[394583382,1763736550915,-500.0,0.00015245,2]
[394583383,1763736551010,-500.0,0.00015245,2]
[394583384,1763736551054,-500.0,0.00015245,2]
[394583385,1763736551093,-500.0,0.00015245,2]
[394583386,1763736551134,-500.0,0.00015245,2]
[394583387,1763736551173,-500.0,0.00015245,2]
[394583388,1763736551207,-180.42895222,0.00015246,2]
[394583389,1763736551239,-1465.47919556,0.00015246,2]
[394583390,1763736551341,-1708.19370444,0.00015246,2]
[394583391,1763736552821,-948.10709785,0.00015246,2]
[394583392,1763736552859,-1708.19370444,0.00015246,2]
[394583393,1763736552890,-6583.62259112,0.00015246,2]
[394583394,1763736553046,-10000.01,0.00015246,2]
[394583395,1763736553100,-10000.01,0.00015246,2]
[394583396,1763736553163,-10000.01,0.00015246,2]
[394583397,1763736554080,-10000.01,0.00015246,2]
[394583398,1763736554602,-10000.01,0.00015246,2]
[394583399,1763736554647,-10000.01,0.00015246,2]
[394583400,1763736554689,-10000.01,0.00015246,2]
[394583401,1763736555335,-10000.01,0.00015246,2]
[394583402,1763736555634,-10000.01,0.00015246,2]
[394583403,1763736555676,-10000.01,0.00015246,2]
[394583404,1763736555889,-10000.01,0.00015246,2]
[394583405,1763736556046,-10000.01,0.00015246,2]
[394583406,1763736561940,-10000.01,0.00015246,2]
[394583407,1763736569474,-10000.01,0.00015246,2]
[394583408,1763736573861,-10000.01,0.00015246,2]
[394583409,1763736574130,-10000.01,0.00015246,2]
[394583410,1763736574276,-10000.01,0.00015246,2]
[394583411,1763736574414,-10000.01,0.00015246,2]
[394583412,1763736574541,-10000.01,0.00015246,2]
[394583413,1763736575420,-10000.01,0.00015246,2]
[394583414,1763736575443,-10000.01,0.00015246,2]
[394583415,1763736577624,-10000.01,0.00015246,2]
[394583416,1763736581015,-10000.01,0.00015246,2]
[394583417,1763736581131,-10000.01,0.00015246,2]
[394583418,1763736581251,-10000.01,0.00015246,2]
[394583419,1763736581428,-10000.01,0.00015246,2]
[394583420,1763736581542,-10000.01,0.00015246,2]
[394583421,1763736581633,-10000.01,0.00015246,2]